fUST/lending_fUST_20260611
["ID","MTS","AMOUNT","RATE_DAILY","PERIOD"]
[424794031,1781167961000,417.15472785,0.00021319,30]
[424794042,1781168263000,-537.94848696,8.6e-05,2]
[424794043,1781168267000,-302.46804711,8.514e-05,2]
[424794044,1781168268000,-235.469673,8.514e-05,2]
[424794045,1781168268000,-99.48895292,8.6e-05,2]
[424794046,1781168276000,-129.53914877,8.6e-05,2]
[424794047,1781168276000,-88.97748411,8.6e-05,2]
[424794049,1781168289000,-42.26134636,8.6e-05,2]
[424794048,1781168289000,-302.46804711,8.514e-05,2]
[424794051,1781168423000,-537.93871171,8.514e-05,2]
[424794052,1781168424000,-1056.90754295,8.514e-05,2]
[424794053,1781168425000,-372.362627,8.514e-05,2]
[424794054,1781168432000,816.23,8.401e-05,2]
[424794055,1781168432000,1000.0,8.401e-05,2]
[424794056,1781168432000,1000.0,8.401e-05,2]
[424794057,1781168433000,-549.9041487,8.401e-05,2]
[424794059,1781168434000,-55.814192,8.514e-05,2]
[424794058,1781168434000,-239.64878799,8.401e-05,2]
[424794060,1781168435000,-179.91794919,8.514e-05,2]
[424794061,1781168436000,-199.53298916,8.514e-05,2]
[424794062,1781168438000,-336.88679517,8.514e-05,2]
[424794063,1781168439000,-152.0,8.514e-05,2]
[424794064,1781168440000,-235.67396955,8.514e-05,2]
[424794065,1781168448000,-379.55529104,8.514e-05,2]
[424794066,1781168454000,235.67396955,8.4e-05,2]
[424794067,1781168457000,-302.26375056,8.514e-05,2]
[424794068,1781168464000,-1056.90563718,8.514e-05,2]
[424794069,1781168476000,1652.24949531,8.4e-05,2]
[424794070,1781168478000,-86.47518347,8.4e-05,2]
[424794071,1781168478000,-98.34937927,8.514e-05,2]
[424794073,1781168479000,-131.52992201,8.6e-05,2]
[424794072,1781168479000,-35.89116522,8.514e-05,2]
[424794074,1781168492000,-720.75504863,8.514e-05,2]
[424794075,1781168495000,-686.4799977,8.514e-05,2]
[424794077,1781168504000,-456.27,8.429e-05,2]
[424794076,1781168504000,-345.97238893,8.429e-05,2]
[424794079,1781168505000,-29.24169033,8.514e-05,2]
[424794078,1781168505000,-270.75830967,8.429e-05,2]
[424794080,1781168507000,-348.70282918,8.514e-05,2]
[424794094,1781168876000,1000.0,8.003e-05,2]
[424794093,1781168876000,1000.0,8.003e-05,2]
[424794092,1781168876000,1000.0,8.003e-05,2]
[424794090,1781168876000,1000.0,8.003e-05,2]
[424794091,1781168876000,1000.0,8.003e-05,2]
[424794096,1781168881000,-2137.42521581,8.262e-05,2]
[424794095,1781168881000,-151.0,8.014e-05,2]
[424794097,1781168881000,-80.99150953,8.6e-05,2]
[424794112,1781168965000,-485.94002059,0.00017226,2]
[424794152,1781169032000,-356.1667011,0.00017226,2]
[424794149,1781169032000,-433.45811007,0.00017226,2]
[424794154,1781169032000,-3724.43516824,0.00017226,2]
[424794162,1781169032000,-1039.1768457,0.00018669,2]
[424794164,1781169032000,-400.37946534,0.0001932,2]
[424794157,1781169032000,-186.575132,0.00017654,2]
[424794165,1781169032000,-403.34025466,0.00019448,2]
[424794160,1781169032000,-507.01454159,0.00018572,2]
[424794158,1781169032000,-500.0,0.00018572,2]
[424794167,1781169032000,-107.9517979,0.00019992,2]
[424794166,1781169032000,-514.25454834,0.00019946,2]
[424794169,1781169032000,-1926.76783988,0.00020316,2]
[424794168,1781169032000,-584.51359465,0.00019992,2]
[424794170,1781169032000,-622.63681698,0.00020316,2]
[424794155,1781169032000,-1000.0,0.000174,2]
[424794218,1781169038000,-245.49365351,0.00020337,2]
[424794214,1781169038000,-457.57653182,0.0001932,2]
[424794225,1781169038000,-625.16,0.00020415,2]
[424794227,1781169038000,-500.0,0.00020415,2]
[424794216,1781169038000,-1365.00426203,0.00020316,2]
[424794223,1781169038000,-157.054,0.00020415,2]
[424794234,1781169038000,-455.82,0.00020478,3]
[424794221,1781169038000,-785.57969124,0.00020337,2]
[424794229,1781169038000,-500.0,0.00020415,2]
[424794231,1781169038000,-25018.2882827,0.00020416,2]
[424794233,1781169038000,-1700.877799,0.00020416,2]
[424794236,1781169038000,-169972.90324667,0.00020488,2]
[424794219,1781169038000,-441.88857632,0.00020337,2]
[424794541,1781169041000,-2774.967945,0.00020488,2]
[424794578,1781169045000,-2225.032055,0.00020488,2]
[424794595,1781169046000,-1792.23868332,0.00020388,2]
[424794596,1781169046000,-2053.3467983,0.00020488,2]
[424794634,1781170151000,-220.67935611,0.00016713,2]
[424794635,1781170151000,-632.66967837,0.00016957,2]
[424794672,1781170232000,-322.83161472,0.00018101,2]
[424794684,1781170232000,-186.44409443,0.00019799,2]
[424794686,1781170232000,-500.0,0.00019799,2]
[424794688,1781170232000,-500.0,0.00019799,2]
[424794670,1781170232000,-238.79725722,0.00017381,2]
[424794689,1781170232000,-500.0,0.00019799,2]
[424794675,1781170232000,-399.74058252,0.00018146,5]
[424794674,1781170232000,-278.46773383,0.00018101,2]
[424794673,1781170232000,-91.86496866,0.00018101,2]
[424794668,1781170232000,-5000.0,0.00016787,2]
[424794671,1781170232000,-298.78224417,0.00018087,7]
[424794680,1781170232000,-174.09993872,0.00018756,2]
[424794669,1781170232000,-13.26216523,0.00016957,2]
[424794681,1781170232000,-181.23006128,0.00019559,2]
[424794682,1781170232000,-325.8878962,0.00019559,2]
[424794697,1781170232000,-671.27209491,0.000198,2]
[424794696,1781170232000,-399.59277614,0.000198,2]
[424794694,1781170232000,-500.0,0.00019799,2]
[424794695,1781170232000,-308.51605213,0.00019799,2]
[424794692,1781170232000,-500.0,0.00019799,2]
[424794693,1781170232000,-500.0,0.00019799,2]
[424794690,1781170232000,-564.3338177,0.00019799,2]
[424794691,1781170232000,-500.0,0.00019799,2]
[424794683,1781170232000,-328.39669341,0.00019559,2]
[424794678,1781170232000,-151.76883911,0.00018715,2]
[424794676,1781170232000,-186.575132,0.00018527,2]
[424794685,1781170232000,-500.0,0.00019799,2]
[424794729,1781170239000,-136.25,0.00019799,2]
[424794733,1781170239000,-320.39760831,0.000198,2]
[424794730,1781170239000,-276.94758712,0.00019799,2]
[424794732,1781170239000,-500.0,0.00019799,2]
[424794727,1781170239000,-363.75,0.00019799,2]
[424795157,1781170243000,-1239.24018423,0.000198,2]
[424795181,1781170244000,-390.66495456,0.000198,2]
[424795544,1781170247000,-500.0,0.00019899,2]
[424795542,1781170247000,-500.0,0.00019899,2]
[424795540,1781170247000,-500.0,0.00019899,2]
[424795548,1781170247000,-500.0,0.00019899,2]
[424795546,1781170247000,-500.0,0.00019899,2]
[424795552,1781170247000,-500.0,0.00019899,2]
[424795538,1781170247000,-500.0,0.00019899,2]
[424795536,1781170247000,-182.104,0.00019899,2]
[424795555,1781170247000,-500.0,0.00019899,2]
[424795553,1781170247000,-500.0,0.00019899,2]
[424795557,1781170247000,-29399.03495567,0.000199,2]
[424795535,1781170247000,-269936.28374756,0.000198,2]
[424797398,1781171363000,-423.68210589,0.00015772,2]
[424797440,1781171431000,-258.44674592,0.00015772,2]
[424797456,1781171438000,-223.44858666,0.00015931,2]
[424797455,1781171438000,-4741.55325408,0.00015772,2]
[424797475,1781171438000,-41.11059328,0.00018046,2]
[424797462,1781171438000,152.0,0.00021381,30]
[424797464,1781171438000,-102.43930954,0.00015931,2]
[424797466,1781171438000,-399.74058252,0.00017239,2]
[424797479,1781171438000,-223.44905762,0.00018046,2]
[424797485,1781171438000,-1235.56180052,0.00019054,2]
[424797481,1781171438000,-152.0,0.00018096,7]
[424797470,1781171438000,-262.63007007,0.00017239,2]
[424797472,1781171438000,-159.29,0.00017836,2]
[424797473,1781171438000,-993.66,0.00018,2]
[424797483,1781171438000,-386.11306266,0.00019054,2]
[424797486,1781171438000,-342.3064512,0.00019054,2]
[424797468,1781171438000,-1598.96233009,0.00017239,2]
[424797764,1781171440000,-1928.634748,0.00019054,2]
[424797762,1781171440000,-352.69706159,0.00019054,2]
[424797767,1781171440000,-255.29495597,0.00019054,2]
[424797765,1781171440000,-199.3174639,0.00019054,2]
[424797859,1781171443000,-500.0,0.00019526,2]
[424797865,1781171443000,-151.5,0.00019526,2]
[424797864,1781171443000,-500.0,0.00019526,2]
[424797863,1781171443000,-151.5,0.00019526,2]
[424797862,1781171443000,-500.0,0.00019526,2]
[424797860,1781171443000,-500.0,0.00019526,2]
[424797861,1781171443000,-356.69570335,0.00019526,2]
[424797858,1781171443000,-500.0,0.00019526,2]
[424797852,1781171443000,-500.0,0.00019325,2]
[424797856,1781171443000,-248.96083718,0.00019325,2]
[424797855,1781171443000,-500.0,0.00019325,2]
[424797854,1781171443000,-500.0,0.00019325,2]
[424797853,1781171443000,-335.05943751,0.00019325,2]
[424797851,1781171443000,-500.0,0.00019325,2]
[424797850,1781171443000,-164.40326836,0.00019317,5]
[424797849,1781171443000,-626.55999858,0.00019317,5]
[424797866,1781171443000,-500.0,0.00019526,2]
[424797857,1781171443000,-151.5,0.00019325,2]
[424797868,1781171443000,-151.5,0.00019526,2]
[424797848,1781171443000,-103.11770761,0.00019054,2]
[424797869,1781171443000,-184.04363609,0.00019526,2]
[424797887,1781171443000,-45392.71127128,0.00019599,2]
[424797884,1781171443000,-182.104,0.00019597,2]
[424797885,1781171443000,-13480.13087222,0.00019599,2]
[424797882,1781171443000,-358.44773666,0.00019578,2]
[424797880,1781171443000,-359.21948023,0.00019526,2]
[424797883,1781171443000,-825.37744488,0.00019597,2]
[424797881,1781171443000,-358.44773668,0.00019553,2]
[424797878,1781171443000,-500.0,0.00019526,2]
[424797879,1781171443000,-500.0,0.00019526,2]
[424797877,1781171443000,-500.0,0.00019526,2]
[424797875,1781171443000,-500.0,0.00019526,2]
[424797872,1781171443000,-500.0,0.00019526,2]
[424797874,1781171443000,-500.0,0.00019526,2]
[424797873,1781171443000,-500.0,0.00019526,2]
[424797870,1781171443000,-500.0,0.00019526,2]
[424797876,1781171443000,-316.67979508,0.00019526,2]
[424797871,1781171443000,-500.0,0.00019526,2]
[424797886,1781171443000,-7088.7351459,0.00019599,2]
[424797867,1781171443000,-467.09391694,0.00019526,2]
[424797906,1781171446000,-8721.30059431,0.00019599,2]
[424797907,1781171446000,-1573.5,0.00019599,2]
[424797917,1781171540000,473.71811273,0.0001,30]
[424797928,1781171853000,5783.34545416,7.6e-05,2]
[424797966,1781172631000,-2990.75778416,0.0001287,2]
[424798089,1781172638000,-500.0,0.0001936,2]
[424798071,1781172638000,-500.0,0.00019319,2]
[424798081,1781172638000,-178.624404,0.00019319,2]
[424798088,1781172638000,-500.0,0.0001936,2]
[424798086,1781172638000,-500.0,0.0001936,2]
[424798077,1781172638000,-500.0,0.00019319,2]
[424798091,1781172638000,-500.0,0.0001936,2]
[424798095,1781172638000,-500.0,0.0001936,2]
[424798093,1781172638000,-591.03995812,0.0001936,2]
[424798104,1781172638000,-592.36753489,0.0001936,2]
[424798100,1781172638000,-500.0,0.0001936,2]
[424798106,1781172638000,-500.0,0.0001936,2]
[424798099,1781172638000,-500.0,0.0001936,2]
[424798103,1781172638000,-500.0,0.0001936,2]
[424798097,1781172638000,-500.0,0.0001936,2]
[424798074,1781172638000,-500.0,0.00019319,2]
[424798079,1781172638000,-500.0,0.00019319,2]
[424798058,1781172638000,-213.26353729,0.00017973,3]
[424798072,1781172638000,-500.0,0.00019319,2]
[424798044,1781172638000,-835.71996315,0.00013,2]
[424798045,1781172638000,-308.64224062,0.00013,2]
[424798041,1781172638000,-2009.24221584,0.0001287,2]
[424798047,1781172638000,-4726.22090125,0.00015,2]
[424798051,1781172638000,-269.2443209,0.00017359,2]
[424798049,1781172638000,-181.7,0.00016438,2]
[424798114,1781172638000,-500.0,0.0001936,2]
[424798083,1781172638000,-207.018,0.00019358,2]
[424798053,1781172638000,-189.016352,0.00017587,2]
[424798054,1781172638000,-561.9850397,0.00017699,2]
[424798056,1781172638000,-374.74799562,0.00017959,2]
[424798063,1781172638000,-207.92502794,0.00018593,2]
[424798062,1781172638000,-168.47,0.00018593,2]
[424798060,1781172638000,-152.0,0.00018099,7]
[424798065,1781172638000,-168.47,0.00018693,2]
[424798069,1781172638000,-500.0,0.00019319,2]
[424798067,1781172638000,-168.49939849,0.00018793,2]
[424798108,1781172638000,-500.0,0.0001936,2]
[424798084,1781172638000,-500.0,0.0001936,2]
[424798115,1781172638000,-500.0,0.0001936,2]
[424798155,1781172638000,-1296.0054395,0.0001959,2]
[424798157,1781172638000,-1296.0054395,0.0001959,2]
[424798151,1781172638000,-1296.0054395,0.0001959,2]
[424798154,1781172638000,-1296.0054395,0.0001959,2]
[424798150,1781172638000,-1296.0054395,0.0001959,2]
[424798163,1781172638000,-1296.0054395,0.0001959,2]
[424798168,1781172638000,-807.45,0.00019597,2]
[424798161,1781172638000,-1296.0054395,0.0001959,2]
[424798167,1781172638000,-807.45,0.00019597,2]
[424798165,1781172638000,-500.0,0.00019597,2]
[424798172,1781172638000,-500.0,0.00019598,2]
[424798177,1781172638000,-807.45,0.00019598,2]
[424798179,1781172638000,-807.45,0.00019598,2]
[424798181,1781172638000,-807.45,0.00019598,2]
[424798182,1781172638000,-807.45,0.00019598,2]
[424798112,1781172638000,-500.0,0.0001936,2]
[424798173,1781172638000,-203.71472788,0.00019598,2]
[424798159,1781172638000,-1296.0054395,0.0001959,2]
[424798176,1781172638000,-807.45,0.00019598,2]
[424798146,1781172638000,-1296.0054395,0.0001959,2]
[424798110,1781172638000,-500.0,0.0001936,2]
[424798148,1781172638000,-1296.0054395,0.0001959,2]
[424798117,1781172638000,-500.0,0.0001936,2]
[424798121,1781172638000,-5363.9951972,0.00019362,2]
[424798135,1781172638000,-1354.26611905,0.0001959,2]
[424798126,1781172638000,-4141.68274845,0.00019398,2]
[424798133,1781172638000,-500.0,0.00019525,2]
[424798119,1781172638000,-500.0,0.0001936,2]
[424798122,1781172638000,-1167.8360847,0.00019362,2]
[424798130,1781172638000,-807.45,0.00019523,2]
[424798124,1781172638000,-16638.8074672,0.00019362,2]
[424798137,1781172638000,-1354.26611905,0.0001959,2]
[424798128,1781172638000,-215.06864202,0.00019498,2]
[424798144,1781172638000,-1296.0054395,0.0001959,2]
[424798139,1781172638000,-1296.0054395,0.0001959,2]
[424798141,1781172638000,-1296.0054395,0.0001959,2]
[424798132,1781172638000,-500.0,0.00019524,2]
[424798142,1781172638000,-276.03770697,0.0001959,2]
[424798274,1781172639000,-150.0,0.00021058,2]
[424798265,1781172639000,-236.60213721,0.000206,2]
[424798267,1781172639000,-236.60213721,0.000208,2]
[424798268,1781172639000,-1000.0,0.00021058,2]
[424798257,1781172639000,-236.60213721,0.000202,2]
[424798253,1781172639000,-151.0,0.0002,2]
[424798236,1781172639000,-165.63421885,0.00019961,2]
[424798232,1781172639000,-208.67292328,0.00019954,2]
[424798242,1781172639000,-65264.0,0.0002,2]
[424798261,1781172639000,-298.78224417,0.00020373,7]
[424798240,1781172639000,-151.0,0.00019999,2]
[424798255,1781172639000,-230.04752619,0.00020061,2]
[424798263,1781172639000,-236.60213721,0.000204,2]
[424798280,1781172639000,-187.95664372,0.00021375,2]
[424798272,1781172639000,-750.0,0.00021058,2]
[424798270,1781172639000,-1000.0,0.00021058,2]
[424798276,1781172639000,-1000.0,0.0002106,2]
[424798278,1781172639000,-769.05815496,0.00021286,2]
[424798298,1781172639000,-166.0,0.00021381,2]
[424798289,1781172639000,-162.248851,0.00021375,2]
[424798285,1781172639000,-297.69774396,0.00021375,120]
[424798282,1781172639000,-106609.33743014,0.00021375,30]
[424798300,1781172639000,-156.0,0.00021381,2]
[424798287,1781172639000,-189.15250219,0.00021375,120]
[424798295,1781172639000,-263.279516,0.00021375,2]
[424798234,1781172639000,-230.04752619,0.00019961,2]
[424798259,1781172639000,-212.88600104,0.00020348,5]
[424798238,1781172639000,-276.9990796,0.00019995,2]
[424798207,1781172639000,-807.45,0.00019652,2]
[424798247,1781172639000,-151.0,0.0002,2]
[424798184,1781172639000,-151.0,0.00019652,2]
[424798186,1781172639000,-807.45,0.00019652,2]
[424798188,1781172639000,-807.45,0.00019652,2]
[424798192,1781172639000,-807.45,0.00019652,2]
[424798196,1781172639000,-807.45,0.00019652,2]
[424798190,1781172639000,-807.45,0.00019652,2]
[424798194,1781172639000,-807.45,0.00019652,2]
[424798202,1781172639000,-807.45,0.00019652,2]
[424798198,1781172639000,-807.45,0.00019652,2]
[424798200,1781172639000,-807.45,0.00019652,2]
[424798206,1781172639000,-807.45,0.00019652,2]
[424798204,1781172639000,-807.45,0.00019652,2]
[424798221,1781172639000,-154.012576,0.00019753,2]
[424798211,1781172639000,-807.45,0.00019652,2]
[424798209,1781172639000,-807.45,0.00019652,2]
[424798223,1781172639000,-418.91136496,0.00019828,2]
[424798219,1781172639000,-151.0,0.00019753,2]
[424798217,1781172639000,-153.446093,0.00019753,2]
[424798213,1781172639000,-807.45,0.00019652,2]
[424798215,1781172639000,-807.54977127,0.00019652,2]
[424798225,1781172639000,-190.751269,0.00019882,2]
[424798226,1781172639000,-280.13282371,0.00019899,2]
[424798228,1781172639000,-161.56526865,0.00019899,2]
[424798230,1781172639000,-504.23908267,0.00019899,2]
[424798244,1781172639000,-236.60213721,0.0002,2]
[424798249,1781172639000,-151.0,0.0002,2]
[424798251,1781172639000,-151.0,0.0002,2]
[424798245,1781172639000,-151.0,0.0002,2]
[424798293,1781172639000,-151.0,0.00021375,2]
[424798284,1781172639000,-221.70007573,0.00021375,120]
[424798297,1781172639000,-157.472151,0.00021375,2]
[424798355,1781172639000,-153.9252069,0.00027478,2]
[424798372,1781172639000,-1416.0,0.00029513,2]
[424798352,1781172639000,-1416.0,0.00026513,2]
[424798354,1781172639000,-394.26637,0.00027,120]
[424798357,1781172639000,-151.0,0.00027478,2]
[424798374,1781172639000,-296.0,0.0003,120]
[424798376,1781172639000,-158.16,0.00030631,30]
[424798385,1781172639000,-500.0,0.00032877,12]
[424798378,1781172639000,-4141.68274845,0.00031113,2]
[424798381,1781172639000,-200.0,0.00032,120]
[424798380,1781172639000,-215.06864199,0.00031512,2]
[424798383,1781172639000,-500.0,0.00032877,10]
[424798393,1781172639000,-300.0,0.00035,3]
[424798387,1781172639000,-447.63273103,0.00033032,2]
[424798391,1781172639000,-188.9195648,0.00034548,2]
[424798394,1781172639000,-1000.0,0.00035,120]
[424798396,1781172639000,-10000.0,0.00035,120]
[424798398,1781172639000,-300.0,0.00035233,38]
[424798400,1781172639000,-300.0,0.00035296,38]
[424798409,1781172639000,-300.0,0.0003544,38]
[424798405,1781172639000,-3712.6197748,0.00035374,2]
[424798402,1781172639000,-300.0,0.00035351,38]
[424798407,1781172639000,-300.0,0.00035399,38]
[424798404,1781172639000,-1196.8691074,0.00035374,2]
[424798413,1781172639000,-300.0,0.00035509,38]
[424798411,1781172639000,-300.0,0.00035477,38]
[424798291,1781172639000,-151.0,0.00021375,2]
[424798359,1781172639000,-215.06864199,0.00027507,2]
[424798370,1781172639000,-169.0,0.00029479,34]
[424798389,1781172639000,-4141.68274845,0.00034042,2]
[424798365,1781172639000,-200.0,0.00028,2]
[424798368,1781172639000,-900.0,0.0002866,2]
[424798304,1781172639000,-156.0,0.00021381,2]
[424798308,1781172639000,-151.0,0.00021918,2]
[424798312,1781172639000,-1000.0,0.00021918,2]
[424798306,1781172639000,-238.22723463,0.00021582,2]
[424798314,1781172639000,-1000.0,0.00021918,2]
[424798310,1781172639000,-154.1331,0.00021918,2]
[424798322,1781172639000,-300.0,0.00022,5]
[424798320,1781172639000,-150.0,0.00021918,2]
[424798316,1781172639000,-1000.0,0.00021918,2]
[424798318,1781172639000,-800.0,0.00021918,2]
[424798324,1781172639000,-895.52861083,0.00022086,2]
[424798326,1781172639000,-4141.68274845,0.00022327,2]
[424798329,1781172639000,-1424.531,0.00023513,2]
[424798302,1781172639000,-166.0,0.00021381,2]
[424798367,1781172639000,-4141.68274845,0.00028185,2]
[424798363,1781172639000,-410.0,0.00028,2]
[424798361,1781172639000,-600.0,0.00028,2]
[424798350,1781172639000,-151.0,0.00025444,2]
[424798335,1781172639000,-156.0,0.00024,11]
[424798344,1781172639000,-290.52666608,0.00025402,2]
[424798340,1781172639000,-151.0,0.0002411,6]
[424798348,1781172639000,-151.0,0.00025444,2]
[424798346,1781172639000,-17305.4643,0.00025444,2]
[424798337,1781172639000,-190.751269,0.00024067,2]
[424798331,1781172639000,-2208.0,0.00023513,2]
[424798333,1781172639000,-3618.0,0.00023513,2]
[424798328,1781172639000,-215.06864199,0.00023503,2]
[424798342,1781172639000,-4141.68274845,0.00025256,2]
[424798498,1781172640000,-867.71,0.00035616,18]
[424798496,1781172640000,-500.0,0.00035616,18]
[424798506,1781172640000,-500.0,0.00035616,18]
[424798494,1781172640000,-500.0,0.00035616,18]
[424798502,1781172640000,-500.0,0.00035616,18]
[424798476,1781172640000,-500.0,0.00035616,18]
[424798487,1781172640000,-216.63189613,0.00035616,18]
[424798485,1781172640000,-500.0,0.00035616,18]
[424798481,1781172640000,-500.0,0.00035616,18]
[424798483,1781172640000,-500.0,0.00035616,18]
[424798477,1781172640000,-500.0,0.00035616,18]
[424798500,1781172640000,-500.0,0.00035616,18]
[424798492,1781172640000,-500.0,0.00035616,18]
[424798508,1781172640000,-500.0,0.00035616,18]
[424798518,1781172640000,-500.0,0.00035616,18]
[424798489,1781172640000,-500.0,0.00035616,18]
[424798491,1781172640000,-500.0,0.00035616,18]
[424798512,1781172640000,-500.0,0.00035616,18]
[424798510,1781172640000,-500.0,0.00035616,18]
[424798514,1781172640000,-637.68216054,0.00035616,18]
[424798516,1781172640000,-500.0,0.00035616,18]
[424798520,1781172640000,-500.0,0.00035616,18]
[424798522,1781172640000,-500.0,0.00035616,18]
[424798524,1781172640000,-571.57,0.00035616,18]
[424798526,1781172640000,-500.0,0.00035616,18]
[424798536,1781172640000,-500.0,0.00035616,18]
[424798532,1781172640000,-500.0,0.00035616,18]
[424798528,1781172640000,-500.0,0.00035616,18]
[424798504,1781172640000,-500.0,0.00035616,18]
[424798472,1781172640000,-500.0,0.00035616,18]
[424798415,1781172640000,-962.93190625,0.00035516,2]
[424798470,1781172640000,-708.33,0.00035616,18]
[424798530,1781172640000,-500.0,0.00035616,18]
[424798417,1781172640000,-215.06864199,0.00035516,2]
[424798419,1781172640000,-300.0,0.00035537,38]
[424798421,1781172640000,-300.0,0.00035561,38]
[424798429,1781172640000,-500.0,0.00035616,18]
[424798427,1781172640000,-3501.5309,0.00035616,18]
[424798423,1781172640000,-300.0,0.00035582,38]
[424798430,1781172640000,-500.0,0.00035616,18]
[424798425,1781172640000,-300.0,0.000356,38]
[424798432,1781172640000,-500.0,0.00035616,18]
[424798434,1781172640000,-500.0,0.00035616,18]
[424798440,1781172640000,-500.0,0.00035616,18]
[424798438,1781172640000,-500.0,0.00035616,18]
[424798479,1781172640000,-500.0,0.00035616,18]
[424798448,1781172640000,-643.38391645,0.00035616,18]
[424798444,1781172640000,-500.0,0.00035616,18]
[424798446,1781172640000,-500.0,0.00035616,18]
[424798454,1781172640000,-500.0,0.00035616,18]
[424798458,1781172640000,-500.0,0.00035616,18]
[424798450,1781172640000,-500.0,0.00035616,18]
[424798456,1781172640000,-500.0,0.00035616,18]
[424798462,1781172640000,-500.0,0.00035616,18]
[424798452,1781172640000,-500.0,0.00035616,18]
[424798464,1781172640000,-500.0,0.00035616,18]
[424798460,1781172640000,-500.0,0.00035616,18]
[424798466,1781172640000,-500.0,0.00035616,18]
[424798468,1781172640000,-500.0,0.00035616,18]
[424798474,1781172640000,-533.64869509,0.00035616,18]
[424798442,1781172640000,-500.0,0.00035616,18]
[424798534,1781172640000,-500.0,0.00035616,18]
[424798553,1781172640000,-500.0,0.00035616,18]
[424798652,1781172640000,-500.0,0.00035616,18]
[424798610,1781172640000,-535.23031482,0.00035616,18]
[424798601,1781172640000,-541.66,0.00035616,18]
[424798606,1781172640000,-500.0,0.00035616,18]
[424798611,1781172640000,-500.0,0.00035616,18]
[424798608,1781172640000,-500.0,0.00035616,18]
[424798613,1781172640000,-403.52710864,0.00035616,18]
[424798626,1781172640000,-500.0,0.00035616,18]
[424798633,1781172640000,-500.0,0.00035616,18]
[424798628,1781172640000,-500.0,0.00035616,18]
[424798615,1781172640000,-500.0,0.00035616,18]
[424798631,1781172640000,-516.39198491,0.00035616,18]
[424798619,1781172640000,-500.0,0.00035616,18]
[424798637,1781172640000,-500.0,0.00035616,18]
[424798604,1781172640000,-520.31913254,0.00035616,18]
[424798624,1781172640000,-500.0,0.00035616,18]
[424798635,1781172640000,-500.0,0.00035616,18]
[424798638,1781172640000,-500.0,0.00035616,18]
[424798621,1781172640000,-500.0,0.00035616,18]
[424798623,1781172640000,-500.0,0.00035616,18]
[424798640,1781172640000,-500.0,0.00035616,18]
[424798643,1781172640000,-500.0,0.00035616,18]
[424798642,1781172640000,-500.0,0.00035616,18]
[424798645,1781172640000,-500.0,0.00035616,18]
[424798649,1781172640000,-326.34969471,0.00035616,18]
[424798647,1781172640000,-500.0,0.00035616,18]
[424798537,1781172640000,-500.0,0.00035616,18]
[424798650,1781172640000,-513.52289023,0.00035616,18]
[424798654,1781172640000,-500.0,0.00035616,18]
[424798617,1781172640000,-500.0,0.00035616,18]
[424798602,1781172640000,-500.0,0.00035616,18]
[424798629,1781172640000,-500.0,0.00035616,2]
[424798599,1781172640000,-500.0,0.00035616,18]
[424798551,1781172640000,-500.0,0.00035616,18]
[424798597,1781172640000,-500.0,0.00035616,18]
[424798556,1781172640000,-500.0,0.00035616,18]
[424798539,1781172640000,-500.0,0.00035616,18]
[424798541,1781172640000,-500.0,0.00035616,18]
[424798547,1781172640000,-500.0,0.00035616,18]
[424798543,1781172640000,-500.0,0.00035616,18]
[424798561,1781172640000,-500.0,0.00035616,18]
[424798559,1781172640000,-500.0,0.00035616,18]
[424798545,1781172640000,-500.0,0.00035616,18]
[424798549,1781172640000,-500.0,0.00035616,18]
[424798563,1781172640000,-541.66,0.00035616,18]